bitfinex-derivatives/quotes_BTCF0:USTF0_20250823
["timestamp","ask_amount","ask_price","bid_price","bid_amount"]
[1755953261329,1.63525652,115430.0,115420.0,0.02333]
[1755953261524,1.63725652,115430.0,115420.0,0.02333]
[1755953267734,0.086674,115420.0,115410.0,0.05237025]
[1755953267932,0.82935933,115420.0,115410.0,0.05237025]
[1755953268235,0.82935933,115420.0,115410.0,0.02333]
[1755953268831,0.82935933,115420.0,115410.0,0.0329]
[1755953269434,0.83035933,115420.0,115410.0,0.0329]
[1755953269631,0.83035933,115420.0,115410.0,0.05513]
[1755953270436,0.83235933,115420.0,115410.0,0.05513]
[1755953270738,0.85003445,115420.0,115410.0,0.05513]
[1755953271240,0.85003445,115420.0,115410.0,0.0329]
[1755953271440,0.85003445,115420.0,115410.0,0.02333]
[1755953273640,0.85103445,115420.0,115410.0,0.02333]
[1755953273839,0.85203445,115420.0,115410.0,0.02333]
[1755953275540,0.85203445,115420.0,115400.0,0.01388]
[1755953275541,0.086689,115400.0,115390.0,1.32260395]
[1755953275740,1.26361433,115400.0,115390.0,1.08768862]
[1755953275939,1.26361433,115400.0,115390.0,1.46957395]
[1755953276136,1.26361433,115400.0,115390.0,0.77383641]
[1755953276341,0.881729,115400.0,115390.0,0.79492794]
[1755953276541,1.26361433,115400.0,115390.0,0.68612183]
[1755953276742,1.26361433,115400.0,115390.0,1.25514797]
[1755953277643,1.26361433,115400.0,115390.0,0.87326264]
[1755953277846,1.26461433,115400.0,115390.0,0.87326264]
[1755953279037,1.26461433,115400.0,115390.0,1.25514797]
[1755953280246,1.26461433,115400.0,115390.0,1.15514797]
[1755953283648,1.26461433,115400.0,115390.0,1.08712183]
[1755953284150,1.26461433,115400.0,115390.0,0.7052365]
[1755953285156,0.882729,115400.0,115390.0,0.7052365]
[1755953285346,1.26461433,115400.0,115390.0,1.08712183]
[1755953285549,1.26461433,115400.0,115390.0,1.08808183]
[1755953285756,1.62541433,115400.0,115390.0,0.7061965]
[1755953286551,1.62541433,115400.0,115390.0,1.08808183]
[1755953286746,1.62541433,115400.0,115390.0,0.7061965]
[1755953287651,1.243529,115400.0,115390.0,0.7061965]
[1755953287859,1.62541433,115400.0,115390.0,0.7061965]
[1755953289653,1.62541433,115400.0,115390.0,0.58518]
[1755953289854,1.62541433,115400.0,115390.0,0.6195]
[1755953290158,1.62541433,115400.0,115390.0,0.08518]
[1755953294062,1.62541433,115400.0,115390.0,0.0713]
[1755953295456,1.62541433,115400.0,115390.0,0.10562]
[1755953296054,1.62541433,115400.0,115390.0,0.0713]
[1755953296255,1.62541433,115400.0,115390.0,0.05613]
[1755953296451,1.62541433,115400.0,115390.0,0.02433]
[1755953296762,1.62541433,115400.0,115390.0,0.09032]
[1755953296966,1.62541433,115400.0,115390.0,0.12018]
[1755953301559,0.0867042,115380.0,115370.0,0.18033611]
[1755953301866,1.26350953,115380.0,115370.0,0.22861611]
[1755953302565,1.26350953,115380.0,115370.0,0.31532781]
[1755953302764,1.26350953,115380.0,115370.0,0.69721314]
[1755953303163,1.26550953,115380.0,115370.0,0.69721314]
[1755953303363,1.26550953,115380.0,115370.0,0.70021314]
[1755953304666,1.26550953,115380.0,115370.0,0.31832781]
[1755953304868,1.26550953,115380.0,115370.0,0.2095217]
[1755953305260,1.27424524,115380.0,115370.0,0.2095217]
[1755953306963,0.89235991,115380.0,115370.0,0.2095217]
[1755953307166,1.27424524,115380.0,115370.0,0.2095217]
[1755953309970,1.27424524,115380.0,115370.0,0.12281]
[1755953311169,1.63504524,115380.0,115370.0,0.12281]
[1755953311871,1.25315991,115380.0,115370.0,0.2095217]
[1755953312271,1.63504524,115380.0,115370.0,0.2095217]
[1755953312573,1.63504524,115380.0,115370.0,0.70021314]
[1755953313171,1.63504524,115380.0,115370.0,0.59140703]
[1755953313670,1.63504524,115380.0,115370.0,0.70021314]
[1755953314273,1.63504524,115380.0,115370.0,0.61350144]
[1755953314466,1.63504524,115380.0,115370.0,0.50469533]
[1755953316070,1.63504524,115380.0,115370.0,0.59140693]
[1755953319674,1.25315991,115380.0,115370.0,0.2095216]
[1755953319876,1.63504524,115380.0,115370.0,0.59140693]
[1755953322574,1.63504524,115380.0,115370.0,0.70021304]
[1755953324076,1.63504524,115380.0,115370.0,0.58840693]
[1755953324374,1.63604524,115380.0,115370.0,0.58840693]
[1755953324971,1.63504524,115380.0,115370.0,0.58840693]
[1755953325274,1.63504524,115380.0,115370.0,0.58940693]
[1755953326082,1.63504524,115380.0,115370.0,0.50269533]
[1755953326767,1.25315991,115380.0,115370.0,0.50269533]
[1755953326963,1.63504524,115380.0,115370.0,0.50269533]
[1755953327169,1.63404524,115380.0,115370.0,0.50269533]
[1755953327666,1.63304524,115380.0,115370.0,0.50269533]
[1755953327866,1.63404524,115380.0,115370.0,0.50269533]
[1755953328072,1.63404524,115380.0,115370.0,0.08649]
[1755953328373,1.63404524,115380.0,115370.0,0.07253]
[1755953330271,1.63404524,115380.0,115370.0,0.10498]
[1755953332383,1.63404524,115380.0,115370.0,0.07253]
[1755953333086,1.63404524,115380.0,115370.0,0.10498]
[1755953334188,1.63404524,115380.0,115370.0,0.07253]
[1755953334484,1.63404524,115380.0,115370.0,0.18133611]
[1755953338587,1.63404524,115380.0,115370.0,0.07253]
[1755953340786,1.63404524,115380.0,115370.0,0.0342]
[1755953340980,1.63404524,115380.0,115370.0,0.02496]
[1755953341489,1.63404524,115380.0,115370.0,0.03457]
[1755953341789,1.25215991,115380.0,115370.0,0.03457]
[1755953341989,1.63404524,115380.0,115370.0,0.05764]
[1755953342490,1.63404524,115380.0,115370.0,0.09077]
[1755953342689,1.63404524,115380.0,115370.0,0.10577]
[1755953342889,1.63404524,115380.0,115370.0,0.12069]
[1755953345386,1.63404524,115380.0,115370.0,0.22949611]
[1755953346989,1.63404524,115380.0,115370.0,0.08756]
[1755953347892,1.63404524,115380.0,115370.0,0.19636611]
[1755953348689,1.63404524,115380.0,115370.0,0.07264]
[1755953350589,1.63404524,115380.0,115370.0,0.02496]
[1755953352990,1.25215991,115380.0,115370.0,0.02496]
[1755953353191,1.63404524,115380.0,115370.0,0.02496]
[1755953353995,0.1263317,115370.0,115360.0,0.08188175]
[1755953354298,0.50821703,115370.0,115360.0,0.32381786]
[1755953354592,0.50821703,115370.0,115360.0,0.29068786]
[1755953354795,0.86901703,115370.0,115360.0,0.19068786]
[1755953355200,0.86901703,115370.0,115360.0,0.08188175]
[1755953355408,0.86901703,115370.0,115360.0,0.05196175]
[1755953355800,0.86901703,115370.0,115360.0,0.01928175]
[1755953356798,0.4891317,115370.0,115360.0,0.01928175]
[1755953357000,0.1263392,115360.0,115350.0,0.89201133]
[1755953357298,0.9272592,115360.0,115350.0,0.99201133]
[1755953357494,0.1253392,115360.0,115350.0,1.04822133]
[1755953357698,0.1253392,115360.0,115350.0,1.54822133]
[1755953358300,0.1253392,115360.0,115350.0,1.55022133]
[1755953358502,0.1273392,115360.0,115350.0,1.55022133]
[1755953359703,0.1273392,115360.0,115350.0,1.168336]
[1755953360000,0.1273392,115360.0,115350.0,1.55022133]
[1755953360201,0.1273392,115360.0,115350.0,1.168336]
[1755953360403,0.1273392,115360.0,115350.0,1.55022133]
[1755953361196,0.1273392,115360.0,115350.0,1.068336]
[1755953361402,0.1273392,115360.0,115350.0,1.45022133]
[1755953361603,0.1273392,115360.0,115350.0,1.068336]
[1755953362101,0.1273392,115360.0,115350.0,1.45022133]
[1755953362804,0.1033792,115360.0,115350.0,1.45022133]
[1755953364205,0.1033792,115360.0,115350.0,1.068336]
[1755953364406,0.1033792,115360.0,115350.0,1.45022133]
[1755953365905,0.1033792,115360.0,115350.0,1.55902744]
[1755953366295,0.1033792,115360.0,115350.0,1.45022133]
[1755953367204,0.1033792,115360.0,115350.0,1.068336]
[1755953367399,0.48526453,115360.0,115350.0,1.45022133]
[1755953367599,0.48526453,115360.0,115350.0,1.55902744]
[1755953367800,0.1033792,115360.0,115350.0,1.17714211]
[1755953367998,0.1033792,115360.0,115350.0,1.55902744]
[1755953369513,0.1033792,115360.0,115350.0,1.45022133]
[1755953374613,0.0877192,115360.0,115350.0,1.45022133]
[1755953376111,0.0877192,115360.0,115350.0,1.068336]
[1755953376311,0.0877192,115360.0,115350.0,1.45022133]
[1755953378705,0.002,115360.0,115350.0,1.45022133]
[1755953378905,1.2476368,115370.0,115350.0,1.47909133]
[1755953379105,1.62952213,115370.0,115360.0,0.11749]
[1755953379411,1.63152213,115370.0,115360.0,0.49937533]
[1755953381510,1.63352213,115370.0,115360.0,0.49937533]
[1755953382016,1.63152213,115370.0,115360.0,0.49937533]
[1755953382216,1.63352213,115370.0,115360.0,0.50137533]
[1755953382811,1.63136213,115370.0,115360.0,0.50137533]
[1755953383007,1.63336213,115370.0,115360.0,0.50137533]
[1755953383618,1.65732213,115370.0,115360.0,0.50137533]
[1755953385920,1.65732213,115370.0,115360.0,0.58809493]
[1755953386716,1.65732213,115370.0,115360.0,0.66595972]
[1755953388524,1.65732213,115370.0,115360.0,0.58809493]
[1755953388718,1.2754368,115370.0,115360.0,0.58809493]
[1755953389019,1.65732213,115370.0,115360.0,0.58809493]
[1755953389219,0.80196,115370.0,115360.0,0.58809493]
[1755953389520,0.8906726,115370.0,115360.0,0.60809493]
[1755953389719,0.9102826,115370.0,115360.0,0.60809493]
[1755953389921,0.9102826,115370.0,115360.0,1.10809493]
[1755953390118,0.9342426,115370.0,115360.0,0.83501571]
[1755953390421,0.9342426,115370.0,115360.0,1.21690104]
[1755953390625,1.31612793,115370.0,115360.0,1.21690104]
[1755953391223,1.31612793,115370.0,115360.0,1.10809493]
[1755953391918,0.9330426,115370.0,115360.0,1.10809493]
[1755953393124,0.9330426,115370.0,115360.0,0.7262096]
[1755953393317,0.9330426,115370.0,115360.0,1.18599472]
[1755953393918,1.31492793,115370.0,115360.0,1.18599552]
[1755953394117,1.31492793,115370.0,115360.0,1.15386552]
[1755953394317,1.31492793,115370.0,115360.0,0.71738979]
[1755953395026,1.67572793,115370.0,115360.0,1.09927512]
[1755953396226,1.2938426,115370.0,115360.0,1.09927512]
[1755953396428,1.67572793,115370.0,115360.0,1.09927512]
[1755953396628,1.67572793,115370.0,115360.0,0.71738979]
[1755953397930,1.67572793,115370.0,115360.0,1.06714512]
[1755953398129,1.67572793,115370.0,115360.0,1.10190512]
[1755953398328,1.67572793,115370.0,115360.0,0.60190512]
[1755953400332,1.67572793,115370.0,115360.0,0.68862562]
[1755953400526,1.2938426,115370.0,115360.0,0.68862562]
[1755953400726,1.67572823,115370.0,115360.0,0.68862562]
[1755953400927,1.2698829,115370.0,115360.0,0.61072583]
[1755953401234,1.18317,115370.0,115360.0,0.68862563]
[1755953401626,1.18269,115370.0,115360.0,0.61072583]
[1755953401823,1.18069,115370.0,115360.0,0.61072583]
[1755953402028,0.02161,115370.0,115360.0,1.50912583]
[1755953402228,0.01841,115370.0,115360.0,1.61793194]
[1755953402429,0.02041,115370.0,115360.0,1.97873194]
[1755953402630,0.02361,115370.0,115360.0,2.47873194]
[1755953404134,0.02361,115370.0,115360.0,2.36992583]
[1755953404626,0.02361,115370.0,115360.0,2.47873194]
[1755953405336,0.02361,115370.0,115360.0,2.09684661]
[1755953405535,0.02361,115370.0,115360.0,2.47873194]
[1755953406233,0.02361,115370.0,115360.0,1.68033194]
[1755953407944,0.02361,115370.0,115360.0,1.1896405]
[1755953408236,0.02361,115370.0,115360.0,1.57152583]
[1755953410633,0.02041,115370.0,115360.0,1.57152583]
[1755953410833,0.02041,115370.0,115360.0,1.16756692]
[1755953411142,0.1103228,115370.0,115360.0,1.16756692]
[1755953411332,0.49220813,115370.0,115360.0,1.54945225]
[1755953411533,0.9084828,115370.0,115360.0,1.54945225]
[1755953412935,0.9084828,115370.0,115360.0,1.16756692]
[1755953413136,0.9084828,115370.0,115360.0,1.54945225]
[1755953413639,1.2692828,115370.0,115360.0,1.18865225]
[1755953414740,1.2692828,115370.0,115360.0,1.11072583]
[1755953415240,1.16096,115370.0,115360.0,1.11072583]
[1755953415439,0.3628,115370.0,115360.0,1.11072583]
[1755953418243,0.3648,115370.0,115360.0,1.11072583]
[1755953419940,0.3648,115370.0,115360.0,1.21953194]
[1755953420347,0.3648,115370.0,115360.0,1.21853194]
[1755953420549,0.3648,115370.0,115360.0,1.21953194]
[1755953420759,0.38057,115370.0,115360.0,1.21953194]
[1755953421143,0.38377,115370.0,115360.0,1.21953194]
[1755953421453,0.38477,115370.0,115360.0,1.21853194]
[1755953421654,0.4714828,115370.0,115360.0,1.21853194]
[1755953421953,0.4934428,115370.0,115360.0,0.83564661]
[1755953422154,0.4704828,115370.0,115360.0,1.21853194]
[1755953422450,0.4704828,115370.0,115360.0,1.10972583]
[1755953424456,0.4704828,115370.0,115360.0,1.21853194]
[1755953425259,0.4704828,115370.0,115360.0,1.10972583]
[1755953425854,0.4704828,115370.0,115360.0,1.18768296]
[1755953426155,0.87632813,115370.0,115360.0,0.7278403]
[1755953426360,0.87632813,115370.0,115360.0,0.64112]
[1755953426657,0.87632813,115370.0,115360.0,0.60636]
[1755953426958,0.87632813,115370.0,115360.0,0.64112]
[1755953427455,0.4944428,115370.0,115360.0,0.2278403]
[1755953427653,0.4944428,115370.0,115360.0,0.60972563]
[1755953428060,0.87632813,115370.0,115360.0,0.60972563]
[1755953429962,0.87632813,115370.0,115360.0,0.68768276]
[1755953431758,0.87632813,115370.0,115360.0,0.60972563]
[1755953432458,0.87632813,115370.0,115360.0,0.71853174]
[1755953433851,0.4944428,115370.0,115360.0,0.24992611]
[1755953434053,0.87632813,115370.0,115360.0,0.14112]
[1755953434465,0.87632813,115370.0,115360.0,0.21907345]
[1755953434765,0.4944428,115370.0,115360.0,0.21907345]
[1755953435167,0.87632813,115370.0,115360.0,0.21907345]
[1755953435660,0.87632813,115370.0,115360.0,0.18431345]
[1755953436865,0.87632813,115370.0,115360.0,0.17063345]
[1755953437361,0.87632813,115370.0,115360.0,0.15548345]
[1755953438068,0.87632813,115370.0,115360.0,0.07753]
[1755953442573,0.87632813,115370.0,115360.0,0.04547]
[1755953442776,0.87632813,115370.0,115360.0,0.021]
[1755953443265,0.87632813,115370.0,115360.0,0.09895345]
[1755953443577,0.87632813,115370.0,115360.0,0.021]
[1755953443878,0.87632813,115370.0,115360.0,0.09895345]
[1755953445668,0.87632813,115370.0,115360.0,0.021]
[1755953446177,0.87632813,115370.0,115360.0,0.09895345]
[1755953447479,0.87632813,115370.0,115360.0,0.021]
[1755953448975,1.12632813,115370.0,115360.0,0.021]
[1755953458878,0.87632813,115370.0,115360.0,0.021]
[1755953459882,0.4944428,115370.0,115360.0,0.07648]
[1755953460181,0.87632813,115370.0,115360.0,0.07648]
[1755953460681,0.87632813,115370.0,115360.0,0.10942]
[1755953462170,0.87632813,115370.0,115360.0,0.07648]
[1755953462683,0.4944428,115370.0,115360.0,0.07648]
[1755953462887,0.87632813,115370.0,115360.0,0.07648]
[1755953466379,0.87632813,115370.0,115360.0,0.05371]
[1755953470285,0.87632813,115370.0,115360.0,0.021]
[1755953470788,0.87632813,115370.0,115360.0,0.04376]
[1755953471697,0.130435,115360.0,115350.0,0.11852]
[1755953471989,1.67260033,115360.0,115350.0,0.11852]
[1755953472791,1.67260033,115360.0,115350.0,0.08558]
[1755953472983,1.67260033,115360.0,115350.0,0.16453345]
[1755953473179,1.67260033,115360.0,115350.0,0.19747345]
[1755953473383,1.67460033,115360.0,115350.0,0.19847345]
[1755953473988,1.67460033,115360.0,115350.0,0.12052]
[1755953474487,1.67460033,115360.0,115350.0,0.19847345]
[1755953475186,1.74315764,115360.0,115350.0,0.12052]
[1755953475588,1.74315764,115360.0,115350.0,0.19847345]
[1755953476793,1.36127231,115360.0,115350.0,0.15079345]
[1755953476995,1.36127231,115360.0,115350.0,0.19759345]
[1755953477293,1.74315764,115360.0,115350.0,0.19759345]
[1755953478296,1.74315764,115360.0,115350.0,0.11964]
[1755953479394,1.36127231,115360.0,115350.0,0.11964]
[1755953479584,1.36127231,115360.0,115350.0,0.05748]
[1755953479786,1.74315764,115360.0,115350.0,0.05748]
[1755953482380,1.74315764,115360.0,115350.0,0.13543345]
[1755953482995,1.74315764,115360.0,115350.0,0.18223345]
[1755953483195,1.74315764,115360.0,115350.0,0.11964]
[1755953484696,2.10395764,115360.0,115350.0,0.11964]
[1755953486794,0.1027125,115350.0,115340.0,0.16272912]
[1755953487098,0.87312783,115350.0,115340.0,0.19566912]
[1755953487696,0.87312783,115350.0,115340.0,0.11771567]
[1755953487893,0.87312783,115350.0,115340.0,0.22652178]
[1755953488197,0.87312783,115350.0,115340.0,0.31326188]
[1755953489001,0.87312783,115350.0,115340.0,0.20445577]
[1755953489294,0.87512783,115350.0,115340.0,0.17737026]
[1755953489500,0.87512783,115350.0,115340.0,0.13249421]
[1755953492200,0.87512783,115350.0,115340.0,0.11893567]
[1755953492904,0.4932425,115350.0,115340.0,0.11893567]
[1755953493202,0.87312783,115350.0,115340.0,0.11893567]
[1755953493404,0.87512783,115350.0,115340.0,0.11793567]
[1755953493604,0.87512783,115350.0,115340.0,0.11893567]
[1755953493799,0.87412783,115350.0,115340.0,0.11893567]
[1755953494302,0.87412783,115350.0,115340.0,0.11793567]
[1755953494604,0.87612783,115350.0,115340.0,0.11793567]
[1755953495099,0.87612783,115350.0,115340.0,0.08477567]
[1755953495303,0.87612783,115350.0,115340.0,0.05548]
[1755953497498,0.87612783,115350.0,115340.0,0.03271]
[1755953500594,0.1320493,115340.0,115330.0,0.13886084]
[1755953500901,1.67193463,115340.0,115330.0,0.13886084]
[1755953501605,1.67193463,115340.0,115330.0,0.09118084]
[1755953502004,1.67393463,115340.0,115330.0,0.09118084]
[1755953502306,1.67393463,115340.0,115330.0,0.07500084]
[1755953502901,1.67493463,115340.0,115330.0,0.07500084]
[1755953503101,1.67493463,115340.0,115330.0,0.15303689]
[1755953503305,1.2930493,115340.0,115330.0,0.15303689]
[1755953503506,1.67493463,115340.0,115330.0,0.15303689]
[1755953504605,1.2930493,115340.0,115330.0,0.13075689]
[1755953505008,1.67493463,115340.0,115330.0,0.05272084]
[1755953505608,1.67493463,115340.0,115330.0,0.04314084]
[1755953506305,1.67493463,115340.0,115330.0,0.01967084]
[1755953507302,1.67493463,115340.0,115330.0,0.03323168]
[1755953508208,1.67493463,115340.0,115330.0,0.01967084]
[1755953514508,1.67493463,115340.0,115330.0,0.04314084]
[1755953515010,1.2930493,115340.0,115330.0,0.04314084]
[1755953515211,1.67493463,115340.0,115330.0,0.04314084]
[1755953515814,1.67493463,115340.0,115330.0,0.01967084]
[1755953516611,0.0867468,115330.0,115320.0,0.11919]
[1755953516818,0.87474213,115330.0,115320.0,0.11919]
[1755953517118,0.87474213,115330.0,115320.0,0.08603]
[1755953517314,0.87474213,115330.0,115320.0,0.12071]
[1755953517707,0.4928568,115330.0,115320.0,0.12071]
[1755953517913,0.87474213,115330.0,115320.0,0.12171]
[1755953518408,0.87674213,115330.0,115320.0,0.12171]
[1755953519210,0.87674213,115330.0,115320.0,0.2084643]
[1755953519411,0.87674213,115330.0,115320.0,0.12171]
[1755953520416,0.88524277,115330.0,115320.0,0.12171]
[1755953521720,0.50335744,115330.0,115320.0,0.12171]
[1755953522015,0.88524277,115330.0,115320.0,0.12171]
[1755953522213,0.50335744,115330.0,115320.0,0.12171]
[1755953522416,0.88524277,115330.0,115320.0,0.12171]
[1755953525112,0.88524277,115330.0,115320.0,0.19974605]
[1755953526420,0.50335744,115330.0,115320.0,0.19974605]
[1755953526620,0.88524277,115330.0,115320.0,0.19974605]
[1755953526920,0.88524277,115330.0,115320.0,0.12171]
[1755953527115,0.88524277,115330.0,115320.0,0.19972965]
[1755953528011,0.50335744,115330.0,115320.0,0.19972965]
[1755953528518,0.88524277,115330.0,115320.0,0.19972965]
[1755953528715,0.50335744,115330.0,115320.0,0.19972965]
[1755953529021,0.88524277,115330.0,115320.0,0.19972965]
[1755953530821,0.88524277,115330.0,115320.0,0.12171]
[1755953531010,0.88524277,115330.0,115320.0,0.19972965]
[1755953531214,0.88624277,115330.0,115320.0,0.19872965]
[1755953532624,0.88424277,115330.0,115320.0,0.19872965]
[1755953532825,0.50435744,115330.0,115320.0,0.19872965]
[1755953533020,0.88624277,115330.0,115320.0,0.19872965]
[1755953534225,0.50435744,115330.0,115320.0,0.12071]
[1755953534525,0.88624277,115330.0,115320.0,0.12071]
[1755953535727,0.88624277,115330.0,115320.0,0.22951611]
[1755953537624,1.24704277,115330.0,115320.0,0.22951611]
[1755953537927,1.24704277,115330.0,115320.0,0.19880943]
[1755953540931,0.86515744,115330.0,115320.0,0.19880943]
[1755953541132,1.24704277,115330.0,115320.0,0.19880943]
[1755953541333,1.24704277,115330.0,115320.0,0.22951611]
[1755953543232,1.24704277,115330.0,115320.0,0.12071]
[1755953543435,1.24704277,115330.0,115320.0,0.19881562]
[1755953546745,1.24704277,115330.0,115320.0,0.12071]
[1755953548337,1.24704277,115330.0,115320.0,0.19881562]
[1755953551141,1.24704277,115330.0,115320.0,0.12071]
[1755953551342,0.86515744,115330.0,115320.0,0.10619]
[1755953551738,1.24704277,115330.0,115320.0,0.10619]
[1755953552242,0.86515744,115330.0,115320.0,0.10619]
[1755953552442,1.24704277,115330.0,115320.0,0.11974]
[1755953552739,0.86515744,115330.0,115320.0,0.11974]
[1755953552940,1.24704277,115330.0,115320.0,0.19785077]
[1755953553141,1.24704277,115330.0,115320.0,0.11116077]
[1755953555840,0.86515744,115330.0,115320.0,0.11116077]
[1755953556045,1.24704277,115330.0,115320.0,0.11116077]
[1755953556245,0.86515744,115330.0,115320.0,0.11116077]
[1755953556449,1.24704277,115330.0,115320.0,0.11116077]
[1755953556644,1.24704277,115330.0,115320.0,0.07811077]
[1755953556836,0.86515744,115330.0,115320.0,0.07811077]
[1755953557036,0.86515744,115330.0,115310.0,0.5780461]
[1755953557037,0.1316835,115320.0,115310.0,0.5780461]
[1755953557242,1.67384883,115320.0,115310.0,0.5780461]
[1755953557643,1.2919635,115320.0,115310.0,0.5780461]
[1755953557844,1.67384883,115320.0,115310.0,0.19616077]
[1755953558144,1.67384883,115320.0,115310.0,0.5780461]
[1755953558954,1.67584883,115320.0,115310.0,0.5780461]
[1755953559450,1.67584883,115320.0,115310.0,0.19616077]
[1755953559650,1.67584883,115320.0,115310.0,0.5790461]
[1755953559951,1.67584883,115320.0,115310.0,0.6658071]
[1755953560153,1.67584883,115320.0,115310.0,0.28392177]
[1755953560953,1.2939635,115320.0,115310.0,0.28392177]
[1755953561149,1.67584883,115320.0,115310.0,0.28392177]
[1755953561350,1.6932415,115320.0,115310.0,0.28392177]
[1755953561552,1.6932415,115320.0,115310.0,0.50093533]
[1755953562465,1.6932415,115320.0,115310.0,0.11905]
[1755953563359,1.6932415,115320.0,115310.0,0.08566]
[1755953563559,1.6932415,115320.0,115310.0,0.11905]
[1755953565570,1.6932415,115320.0,115310.0,0.22785611]
[1755953566068,1.6932415,115320.0,115310.0,0.11905]
[1755953566368,1.6932415,115320.0,115310.0,0.22785611]
[1755953566568,1.6922015,115320.0,115310.0,0.22785611]
[1755953566868,1.6922015,115320.0,115310.0,0.69650254]
[1755953567068,1.6922015,115320.0,115310.0,0.31461721]
[1755953567366,1.31031617,115320.0,115310.0,0.69650254]
[1755953567560,1.6922015,115320.0,115310.0,0.66578957]
[1755953568566,1.6922015,115320.0,115310.0,0.16375314]
[1755953568972,1.6922015,115320.0,115310.0,0.19714314]
[1755953569371,1.6922015,115320.0,115310.0,0.15020314]
[1755953569766,1.6922015,115320.0,115310.0,0.19714314]
[1755953571869,1.31031617,115320.0,115310.0,0.19714314]
[1755953572074,1.6922015,115320.0,115310.0,0.19714314]
[1755953573372,1.6922015,115320.0,115310.0,0.11905]
[1755953574364,1.6922015,115320.0,115310.0,0.05604]
[1755953574666,1.6922015,115320.0,115310.0,0.001]
[1755953574874,1.6922015,115320.0,115310.0,0.07908538]
[1755953575076,1.6922015,115320.0,115310.0,0.001]
[1755953575262,1.6922015,115320.0,115310.0,0.10353538]
[1755953576574,1.6922015,115320.0,115310.0,0.07908538]
[1755953577276,1.6922015,115320.0,115310.0,0.10353538]
[1755953577475,1.6922015,115320.0,115310.0,0.02545]
[1755953577870,1.6922015,115320.0,115310.0,0.0790754]
[1755953578376,1.31031617,115320.0,115310.0,0.001]
[1755953578580,1.6922015,115320.0,115310.0,0.001]
[1755953579979,1.6922015,115320.0,115310.0,0.0790754]
[1755953580372,2.07408683,115320.0,115310.0,0.0790754]
[1755953580572,0.1165351,115300.0,115290.0,0.22260905]
[1755953580781,1.31164043,115300.0,115290.0,0.22260905]
[1755953581472,1.67244043,115300.0,115290.0,0.72260905]
[1755953581969,1.74186628,115300.0,115290.0,0.61380294]
[1755953582373,1.74386628,115300.0,115290.0,0.61380294]
[1755953582575,1.74486628,115300.0,115290.0,0.64099294]
[1755953582775,1.74486628,115300.0,115290.0,0.14099294]
[1755953583390,1.36298095,115300.0,115290.0,0.14099294]
[1755953583579,1.74486628,115300.0,115290.0,0.14099294]
[1755953584180,1.74486628,115300.0,115290.0,0.10785294]
[1755953584381,1.74486628,115300.0,115290.0,0.14099294]
[1755953584985,1.74486628,115300.0,115290.0,0.08366294]
[1755953585382,1.74486628,115300.0,115290.0,0.11680294]
[1755953588287,1.36298095,115300.0,115290.0,0.11680294]
[1755953588488,1.74486628,115300.0,115290.0,0.11680294]
[1755953591487,1.74486628,115300.0,115290.0,0.02236294]
[1755953591985,1.74486628,115300.0,115290.0,0.08671294]
[1755953592191,1.74486628,115300.0,115290.0,0.10153294]
[1755953593295,1.74486628,115300.0,115290.0,0.08217]
[1755953593495,1.76246443,115300.0,115290.0,0.08217]
[1755953595501,1.76246443,115300.0,115290.0,0.03421]
[1755953597594,1.76246443,115300.0,115290.0,0.01283]
[1755953597795,1.76246443,115300.0,115290.0,0.03421]
[1755953598997,1.76246443,115300.0,115290.0,0.003]
[1755953599700,1.76246443,115300.0,115290.0,0.01283]
[1755953600394,1.3805791,115300.0,115290.0,0.06735]
[1755953600699,1.76246443,115300.0,115290.0,0.06735]
[1755953602697,1.3805791,115300.0,115290.0,0.06735]
[1755953602897,1.76246443,115300.0,115290.0,0.06735]
[1755953603098,1.3805791,115300.0,115290.0,0.06735]
[1755953603402,1.76246443,115300.0,115290.0,0.06735]
[1755953607304,0.96510443,115300.0,115290.0,0.06735]
[1755953607503,1.76250443,115300.0,115290.0,0.03421]
[1755953607803,1.3806191,115300.0,115290.0,0.03421]
[1755953608097,1.76250443,115300.0,115290.0,0.03421]
[1755953610593,1.76250443,115300.0,115290.0,0.01283]
[1755953610999,1.76250443,115300.0,115290.0,0.12163611]
[1755953612301,1.76250443,115300.0,115290.0,0.01283]
[1755953615312,1.76250443,115300.0,115290.0,0.003]
[1755953616208,1.3806191,115300.0,115290.0,0.003]
[1755953616411,1.76250443,115300.0,115290.0,0.003]
[1755953616812,1.3806191,115300.0,115290.0,0.003]
[1755953617006,1.76250443,115300.0,115290.0,0.003]
[1755953619416,1.76250443,115300.0,115290.0,0.01656426]
[1755953620115,1.76250443,115300.0,115290.0,0.003]
[1755953623019,0.0867716,115290.0,115280.0,0.0285105]
[1755953623215,0.87353693,115290.0,115280.0,0.0285105]
[1755953623421,0.87353693,115290.0,115280.0,0.0192705]
[1755953624522,0.1288591,115280.0,115270.0,0.09645]
[1755953624721,1.66894443,115280.0,115270.0,0.09645]
[1755953625018,1.66894443,115280.0,115270.0,0.59645]
[1755953625319,1.2870591,115280.0,115270.0,0.54604]
[1755953625524,1.66894443,115280.0,115270.0,0.58078]
[1755953625822,1.2900591,115280.0,115270.0,0.58278]
[1755953626022,1.67194443,115280.0,115270.0,0.58278]
[1755953626819,1.2900591,115280.0,115270.0,0.58278]
[1755953627021,1.67194443,115280.0,115270.0,0.58278]
[1755953627222,1.67194443,115280.0,115270.0,0.54804]
[1755953627625,1.67194443,115280.0,115270.0,0.04804]
[1755953627817,1.67194443,115280.0,115270.0,0.03396]
[1755953628523,1.67194443,115280.0,115270.0,0.002]
[1755953628718,1.68054056,115280.0,115270.0,0.002]
[1755953634621,1.29865523,115280.0,115270.0,0.002]
[1755953634827,1.68054056,115280.0,115270.0,0.002]
[1755953635323,2.06242589,115280.0,115270.0,0.002]
[1755953635520,0.1079869,115270.0,115260.0,0.02339024]
[1755953635721,0.87355223,115270.0,115260.0,0.02287756]
[1755953635923,0.87355223,115270.0,115260.0,0.01363756]
[1755953636926,0.87455223,115270.0,115260.0,0.01463756]
[1755953637123,0.87455223,115270.0,115260.0,0.02387756]
[1755953637523,0.4926669,115270.0,115260.0,0.02387756]
[1755953637724,0.87455223,115270.0,115260.0,0.02387756]
[1755953637929,0.87655223,115270.0,115260.0,0.02387756]
[1755953638129,0.4946669,115270.0,115260.0,0.04659756]
[1755953638329,0.87655223,115270.0,115260.0,0.03303024]
[1755953639225,0.87655223,115270.0,115260.0,0.01031024]
[1755953639528,0.87655223,115270.0,115260.0,0.00107024]
[1755953639921,0.87655223,115270.0,115260.0,0.001]
[1755953640431,0.87655223,115270.0,115260.0,0.01016]
[1755953641027,0.97780324,115270.0,115260.0,0.01016]
[1755953641332,0.97780324,115270.0,115260.0,0.001]
[1755953642331,0.1312882,115260.0,115250.0,0.00916]
[1755953642527,1.31345353,115260.0,115250.0,0.03232]
[1755953642734,1.31345353,115260.0,115250.0,0.06472]